bitfinex/quotes_SOLUSD_20251030
["timestamp","ask_amount","ask_price","bid_price","bid_amount"]
[1761790789378,20.592,196.92,196.89,0.68]
[1761790789552,20.592,196.92,196.9,3.308709]
[1761790789744,20.592,196.92,196.91,3.308709]
[1761790790162,20.592,196.92,196.91,3.30997431]
[1761790791385,20.592,196.92,196.85,13.88132274]
[1761790791581,20.592,196.92,196.86,3.99216442]
[1761790791767,20.592,196.92,196.87,3.99216442]
[1761790791975,20.592,196.92,196.88,3.31216442]
[1761790792279,7.3977148,196.93,196.89,3.31216442]
[1761790792582,7.3977148,196.93,196.9,3.31216442]
[1761790792788,7.3977148,196.93,196.89,0.7]
[1761790793790,7.3977148,196.95,196.89,0.7]
[1761790794020,20.592,196.92,196.85,9.76366796]
[1761790794175,7.3977148,196.86,196.85,9.76366796]
[1761790794503,9.78882769,196.89,196.85,9.76366796]
[1761790794800,7.3977148,196.92,196.86,4.01365333]
[1761790795106,8.1077148,196.92,196.85,9.76366796]
[1761790795283,7.3977148,196.9,196.86,3.31344662]
[1761790795463,0.71,196.92,196.86,0.7]
[1761790795464,20.592,196.92,196.86,0.7]
[1761790795665,7.3977148,196.9,196.86,0.7]
[1761790795864,7.3977148,196.9,196.85,9.76366796]
[1761790796086,7.3977148,196.9,196.86,3.31362213]
[1761790796272,8.1077148,196.89,196.85,9.76366796]
[1761790796715,20.592,196.93,196.86,0.7]
[1761790797005,7.3977148,196.91,196.86,0.7]
[1761790797882,20.592,196.9,196.86,0.7]
[1761790799020,21.302,196.9,196.85,9.76366796]
[1761790799297,7.3977148,196.89,196.85,10.46366796]
[1761790799467,20.592,196.9,196.85,10.46366796]
[1761790799468,20.592,196.9,196.85,9.76366796]
[1761790799674,20.592,196.88,196.85,9.76366796]
[1761790799893,27.9897148,196.88,196.85,9.76366796]
[1761790801000,20.592,196.89,196.86,0.7]
[1761790802005,20.592,196.89,196.85,9.76366796]
[1761790802006,27.9897148,196.89,196.85,9.76366796]
[1761790802173,7.3977148,196.95,196.87,8.0977148]
[1761790802492,7.3977148,196.95,196.88,0.7]
[1761790802712,7.3977148,196.96,196.89,7.3977148]
[1761790803001,20.592,196.94,196.89,7.3977148]
[1761790803204,0.71,196.98,196.9,0.7]
[1761790803367,7.3977148,196.97,196.9,0.7]
[1761790803573,7.3977148,196.95,196.88,8.0977148]
[1761790803886,20.592,196.94,196.88,7.3977148]
[1761790804072,20.592,196.94,196.89,0.7]
[1761790804277,7.3977148,196.95,196.89,0.7]
[1761790804489,20.592,196.93,196.89,8.0977148]
[1761790804789,5.88617271,197.0,196.89,8.0977148]
[1761790804790,0.1,197.0,196.92,7.3977148]
[1761790805017,27.9897148,196.99,196.92,12.47590436]
[1761790805212,27.9897148,196.99,196.93,0.7]
[1761790807822,0.71,196.98,196.86,4.25981635]
[1761790808023,7.3977148,196.97,196.89,0.7]
[1761790808229,20.592,196.96,196.89,0.7]
[1761790808411,20.592,196.96,196.89,8.0977148]
[1761790808924,20.592,196.96,196.9,0.7]
[1761790810507,20.592,196.96,196.86,0.7]
[1761790810508,7.3977148,196.93,196.86,0.7]
[1761790810734,7.3977148,196.93,196.87,4.01515552]
[1761790810950,7.3977148,196.91,196.87,0.7]
[1761790811417,4.96249018,196.92,196.87,0.7]
[1761790812332,4.96249018,196.92,196.85,9.76366796]
[1761790812333,4.96249018,196.9,196.85,9.76366796]
[1761790812511,4.96249018,196.88,196.86,3.32337191]
[1761790812714,0.72,196.9,196.85,9.76366796]
[1761790813036,4.96249018,196.87,196.85,9.76366796]
[1761790813228,4.96249018,196.87,196.86,3.32425739]
[1761790814637,25.55449018,196.87,196.86,3.32425739]
[1761790814836,31.35401556,196.87,196.85,9.76366796]
[1761790815006,21.312,196.86,196.85,9.76366796]
[1761790815207,36.18057979,196.86,196.85,9.76366796]
[1761790817413,36.06331787,196.86,196.85,9.76366796]
[1761790817614,30.38082769,196.86,196.85,13.10385245]
[1761790818044,4.96249018,196.86,196.85,9.76366796]
[1761790818258,4.96249018,196.86,196.85,13.10215788]
[1761790818418,0.72,196.88,196.85,13.10215788]
[1761790818419,4.96249018,196.88,196.85,13.10215788]
[1761790818620,4.96249018,196.88,196.86,3.33848992]
[1761790818838,20.592,196.86,196.85,9.76366796]
[1761790819038,20.592,196.86,196.85,13.10323698]
[1761790819637,0.72,196.86,196.85,13.10323698]
[1761790819849,9.78882769,196.86,196.85,13.10323698]
[1761790820063,4.96249018,196.86,196.85,13.10323698]
[1761790820267,25.55449018,196.86,196.85,13.10323698]
[1761790820770,4.96249018,196.86,196.85,13.10323698]
[1761790821767,20.592,196.87,196.85,13.81323698]
[1761790821974,50.0,196.97,196.85,13.81323698]
[1761790821975,50.0,196.99,196.86,3.33956902]
[1761790822177,50.0,196.99,196.87,12.41971398]
[1761790822178,4.96249018,196.94,196.87,12.41971398]
[1761790822470,25.55449018,196.94,196.88,3.33956902]
[1761790822670,25.55449018,196.94,196.89,3.33956902]
[1761790822968,25.55449018,196.94,196.9,3.33956902]
[1761790823144,25.55449018,196.94,196.91,3.33956902]
[1761790823345,25.55449018,196.94,196.88,0.71]
[1761790823667,25.55449018,196.94,196.89,3.34246326]
[1761790823865,20.592,196.93,196.9,3.34246326]
[1761790824045,20.592,196.93,196.91,3.34246326]
[1761790824247,20.592,196.93,196.92,3.34246326]
[1761790824550,25.55449018,196.94,196.92,3.34246326]
[1761790824765,20.592,196.93,196.88,0.71]
[1761790824945,20.592,196.93,196.89,8.3043017]
[1761790825149,20.592,196.93,196.9,3.34181152]
[1761790825350,20.592,196.96,196.91,4.05181152]
[1761790825550,20.592,196.96,196.92,3.34181152]
[1761790825872,4.96249018,196.97,196.93,3.34181152]
[1761790826177,20.592,196.96,196.93,0.71]
[1761790826365,20.592,196.96,196.94,0.71]
[1761790826550,4.96249018,196.99,196.95,3.33871453]
[1761790826751,4.96249018,196.99,196.94,0.71]
[1761790826966,20.592,196.98,196.95,3.33932671]
[1761790827265,20.592,196.98,196.94,0.71]
[1761790831771,20.592,196.98,196.95,3.3359331]
[1761790831949,20.592,196.98,196.94,0.71]
[1761790833679,0.1,197.0,196.96,4.96249018]
[1761790833878,0.1,197.0,196.97,8.29588488]
[1761790834052,0.1,197.0,196.98,4.0433947]
[1761790834256,0.1,197.0,196.99,5.67249018]
[1761790834551,0.1,197.0,196.99,9.0037169]
[1761790835586,0.1,197.0,196.99,4.04122672]
[1761790836482,0.1,197.0,196.99,9.0037169]
[1761790837255,0.1,197.0,196.99,5.67249018]
[1761790837856,0.1,197.0,196.99,10.74888999]
[1761790838376,0.1,197.0,196.99,14.21405736]
[1761790838802,0.1,197.0,196.99,9.25156718]
[1761790838966,0.1,197.0,196.99,14.21405736]
[1761790839997,0.1,197.12,197.0,9.93098926]
[1761790840281,0.1,197.12,197.08,4.96249018]
[1761790840450,0.1,197.12,197.09,0.71]
[1761790841351,0.1,197.12,197.06,4.96249018]
[1761790841677,0.1,197.12,197.07,0.71]
[1761790842677,4.96249018,197.08,197.02,0.71]
[1761790842863,0.66,197.11,197.02,0.71]
[1761790842864,4.96249018,197.09,197.02,0.71]
[1761790843272,4.96249018,197.08,197.02,0.71]
[1761790844170,4.96249018,197.07,197.02,0.71]
[1761790845093,4.96249018,197.07,196.97,20.73416157]
[1761790845094,4.96249018,197.04,197.0,0.71]
[1761790845799,4.96249018,197.05,197.0,0.71]
[1761790846016,4.96249018,197.04,196.98,0.71]
[1761790846324,4.96249018,197.04,197.0,0.71]
[1761790846804,4.96249018,197.01,196.91,4.14065012]
[1761790846981,4.96249018,196.98,196.93,0.71]
[1761790847710,4.96249018,196.99,196.93,0.71]
[1761790848073,4.96249018,196.98,196.93,0.71]
[1761790848875,4.96249018,196.97,196.93,0.71]
[1761790849683,4.96249018,196.98,196.93,0.71]
[1761790850521,4.96249018,196.98,196.93,5.78794376]
[1761790850708,4.96249018,196.99,196.93,0.71]
[1761790851040,20.592,197.03,196.97,4.96249018]
[1761790851328,4.96249018,197.03,196.96,4.96249018]
[1761790851683,4.96249018,197.03,196.97,0.71]
[1761790852190,50.1,197.12,197.0,4.96249018]
[1761790852191,0.66,197.09,197.0,4.96249018]
[1761790852496,4.96249018,197.07,197.0,4.96249018]
[1761790852694,4.96249018,197.07,197.01,0.72]
[1761790853196,0.66,197.09,197.02,4.96249018]
[1761790853412,25.55449018,197.08,197.02,4.96249018]
[1761790853609,4.96249018,197.08,197.03,0.72]
[1761790853812,0.72,197.11,197.03,0.72]
[1761790854017,4.96249018,197.08,197.03,0.72]
[1761790854195,25.55449018,197.08,197.03,0.72]
[1761790855727,4.96249018,197.07,197.03,0.72]
[1761790856508,21.312,197.08,197.03,0.72]
[1761790856710,4.96249018,197.07,197.03,0.72]
[1761790857030,4.96249018,197.04,196.94,4.14065012]
[1761790857224,4.96249018,197.02,196.96,0.72]
[1761790857419,4.96249018,197.02,196.97,3.30670565]
[1761790857808,4.96249018,197.02,196.97,4.02670565]
[1761790858006,4.96249018,197.02,196.95,10.03978997]
[1761790858308,4.96249018,197.01,196.98,0.72]
[1761790858508,0.72,197.04,196.9,4.86065012]
[1761790858509,20.592,196.98,196.9,4.86065012]
[1761790858714,20.592,197.0,196.91,3.31130032]
[1761790859025,20.592,196.99,196.91,0.72]
[1761790859217,4.96249018,196.96,196.91,0.72]
[1761790859722,21.312,196.99,196.91,0.72]
[1761790860034,4.96249018,196.99,196.93,4.96249018]
[1761790860242,12.68629889,197.07,196.98,4.96249018]
[1761790860243,0.72,197.07,196.98,4.96249018]
[1761790860439,5.07382414,197.09,196.99,4.96249018]
[1761790860440,4.96249018,197.06,196.99,4.96249018]
[1761790860732,4.96249018,197.05,196.99,4.96249018]
[1761790860904,0.72,197.08,197.0,0.72]
[1761790861105,4.96249018,197.06,197.0,0.72]
[1761790861399,4.96249018,197.05,197.0,0.72]
[1761790862599,4.96249018,197.05,196.96,0.14216157]
[1761790862600,0.72,197.04,196.96,0.72]
[1761790862806,4.96249018,197.02,196.97,3.31015715]
[1761790863000,4.96249018,197.02,196.94,12.69374689]
[1761790863001,20.592,197.05,196.94,0.72]
[1761790863227,17.75929185,197.08,196.95,3.31065983]
[1761790863228,4.96249018,196.97,196.95,3.31065983]
[1761790863544,20.592,197.01,196.91,10.76092957]
[1761790863545,4.96249018,196.98,196.91,10.76092957]
[1761790863712,4.96249018,196.98,196.92,8.99590951]
[1761790863913,4.96249018,196.98,196.93,3.31341933]
[1761790864129,4.96249018,196.98,196.94,3.31341933]
[1761790864328,4.96249018,196.98,196.95,3.31341933]
[1761790865235,20.592,197.01,196.95,3.31341933]
[1761790865236,4.96249018,196.97,196.95,3.31341933]
[1761790865623,4.96249018,196.97,196.96,3.31341933]
[1761790866031,4.96249018,196.97,196.94,3.31341933]
[1761790866358,4.96249018,196.97,196.95,3.31341933]
[1761790866520,4.96249018,196.97,196.96,3.31341933]
[1761790866722,4.96249018,196.97,196.94,3.31341933]
[1761790867062,4.96249018,196.97,196.95,3.31341933]
[1761790867214,4.96249018,196.97,196.93,0.72]
[1761790867215,4.96249018,196.97,196.96,3.31341933]
[1761790868230,5.68249018,196.97,196.96,3.31341933]
[1761790868454,4.96249018,196.97,196.92,3.31341933]
[1761790868757,4.96249018,196.96,196.93,3.31341933]
[1761790868935,4.96249018,196.96,196.94,3.31341933]
[1761790869136,4.96249018,196.96,196.95,3.31341933]
[1761790869452,4.96249018,196.98,196.95,4.03341933]
[1761790869656,4.96249018,196.99,196.96,3.31341933]
[1761790869854,4.96249018,196.99,196.97,3.31341933]
[1761790870062,4.96249018,196.98,196.93,0.72]
[1761790870244,4.96249018,196.98,196.94,3.32381697]
[1761790870440,4.96249018,196.98,196.95,3.32381697]
[1761790870643,103.4,197.0,196.96,3.32381697]
[1761790870644,0.72,196.97,196.96,3.32381697]
[1761790870957,21.312,196.97,196.9,4.14065012]
[1761790871140,4.96249018,196.95,196.91,3.32542752]
[1761790871343,4.96249018,196.95,196.92,3.32542752]
[1761790871655,4.96249018,196.94,196.93,3.32542752]
[1761790871856,21.312,196.97,196.93,3.32542752]
[1761790872058,21.312,196.97,196.94,3.32542752]
[1761790872238,4.96249018,196.95,196.91,0.72]
[1761790872561,4.96249018,196.95,196.92,3.32480844]
[1761790872765,4.96249018,196.95,196.93,3.32480844]
[1761790872968,4.96249018,196.95,196.94,3.32480844]
[1761790873369,7.38905861,196.95,196.92,3.32480844]
[1761790873550,7.38905861,196.95,196.93,3.32480844]
[1761790873749,7.38905861,196.95,196.94,3.32480844]
[1761790874151,7.38905861,196.95,196.92,3.32480844]
[1761790874349,7.38905861,196.94,196.93,3.32480844]
[1761790875145,7.38905861,196.95,196.92,3.32480844]
[1761790875360,7.38905861,196.98,196.93,3.32480844]
[1761790875669,7.38905861,196.96,196.94,3.32480844]
[1761790875842,7.38905861,196.95,196.91,0.71]
[1761790876158,7.38905861,196.94,196.92,3.32692194]
[1761790876374,7.38905861,196.94,196.93,3.32692194]
[1761790876753,7.38905861,196.94,196.92,3.32692194]
[1761790876945,5.79673888,196.98,196.93,3.32692194]
[1761790877146,0.72,196.97,196.9,0.71]
[1761790877458,0.72,196.97,196.91,3.33227106]
[1761790877665,0.72,196.97,196.92,3.33227106]
[1761790877854,0.72,196.97,196.93,3.33227106]
[1761790878049,7.38905861,196.95,196.9,0.71]
[1761790878241,7.38905861,196.93,196.91,3.33190926]
[1761790878438,7.38905861,196.93,196.89,5.07897289]
[1761790878439,7.38905861,196.93,196.92,3.33190926]
[1761790879248,7.38905861,196.93,196.87,0.71]
[1761790879446,7.38905861,196.91,196.88,3.33081129]
[1761790879676,7.38905861,196.91,196.89,3.33081129]
[1761790879880,0.72,196.93,196.9,3.33081129]
[1761790880195,5.79798675,196.93,196.85,9.76366796]
[1761790880397,5.79798675,196.93,196.86,3.33206709]
[1761790880570,136.68527751,196.96,196.87,3.33206709]
[1761790880571,103.4,196.96,196.87,3.33206709]
[1761790880775,0.72,196.95,196.88,3.33206709]
[1761790880986,20.592,196.93,196.89,3.33206709]
[1761790881189,20.592,196.93,196.85,9.76366796]
[1761790881190,20.592,196.89,196.85,9.76366796]
[1761790881385,20.592,196.86,196.85,9.76366796]
[1761790881687,20.592,196.86,196.85,8.94366796]
[1761790881882,5.07952568,196.87,196.85,8.94366796]
[1761790882402,7.38905861,196.86,196.85,8.94366796]
[1761790882978,27.98105861,196.86,196.85,8.94366796]
[1761790892787,42.8496384,196.86,196.85,8.94366796]
[1761790896894,37.7698863,196.86,196.85,8.94366796]
[1761790897099,42.8496384,196.86,196.85,8.94366796]
[1761790897297,38.56552069,196.86,196.85,8.94366796]
[1761790904302,51.26490096,196.86,196.78,0.68]
[1761790904504,3.1049409,196.79,196.78,0.68]
[1761790906106,3.1049409,196.8,196.78,0.68]
[1761790906423,3.1049409,196.81,196.78,0.68]
[1761790907309,3.1049409,196.8,196.78,0.68]
[1761790907626,3.1049409,196.79,196.78,0.68]
[1761790910911,3.1049409,196.79,196.76,0.68]
[1761790911110,5.08026823,196.84,196.76,0.68]
[1761790911111,3.1049409,196.77,196.76,0.68]
[1761790912004,103.4,196.85,196.76,0.68]
[1761790912208,3.1049409,196.79,196.76,0.68]
[1761790913530,5.08034009,196.84,196.76,0.68]
[1761790913832,3.1049409,196.79,196.76,0.68]
[1761790914731,3.1049409,196.77,196.74,0.67]
[1761790914920,3.1049409,196.75,196.74,0.67]
[1761790917419,3.1049409,196.76,196.74,0.67]
[1761790917913,3.1049409,196.75,196.74,0.67]
[1761790919848,20.592,196.77,196.74,0.67]
[1761790920020,3.1049409,196.75,196.74,0.67]
[1761790921416,3.1049409,196.75,196.73,0.2]
[1761790921417,23.6969409,196.75,196.73,0.2]
[1761790921619,3.1049409,196.74,196.73,0.2]
[1761790922123,3.1049409,196.74,196.73,0.87]
[1761790922519,3.1049409,196.74,196.73,0.2]
[1761790922922,17.97661905,196.74,196.73,0.2]
[1761790923723,3.1049409,196.74,196.73,0.2]
[1761790924031,103.4,196.75,196.73,0.2]
[1761790924242,3.1049409,196.74,196.73,0.2]
[1761790924820,3.1049409,196.74,196.73,0.87]
[1761790925827,9.78882769,196.78,196.73,0.87]
[1761790925828,20.592,196.78,196.73,0.87]
[1761790926028,108.48115969,196.81,196.73,0.2]
[1761790926029,3.1049409,196.74,196.73,0.2]
[1761790926913,17.97661905,196.74,196.73,0.2]
[1761790927160,20.592,196.7,196.69,0.87]
[1761790927448,6.2098818,196.7,196.69,0.2]
[1761790928140,3.1049409,196.7,196.69,0.87]
[1761790928655,3.1049409,196.73,196.69,9.29217784]
[1761790928982,3.1049409,196.73,196.7,9.09168199]
[1761790929126,3.1049409,196.73,196.71,3.33803529]
[1761790929323,3.1049409,196.73,196.72,3.33803529]
[1761790929624,3.1049409,196.73,196.72,4.00803529]
[1761790930842,3.1049409,196.74,196.72,4.00803529]
[1761790931032,3.1049409,196.74,196.73,4.00803529]
[1761790931441,7.4042883,196.74,196.73,4.00803529]
[1761790932044,7.4042883,196.75,196.73,4.00803529]
[1761790932219,103.4,196.79,196.74,0.67]
[1761790932428,7.4042883,196.75,196.74,0.67]
[1761790933758,7.4042883,196.77,196.74,0.67]
[1761790934044,7.4042883,196.77,196.75,3.34032599]
[1761790934247,20.592,196.77,196.76,0.67]
[1761790934426,27.9962883,196.77,196.76,0.67]
[1761790935431,25.56218716,196.77,196.76,0.67]
[1761790935748,25.56218716,196.77,196.73,0.67]
[1761790935922,4.97018716,196.74,196.73,0.67]
[1761790936526,4.97018716,196.75,196.73,0.67]
[1761790937146,4.97018716,196.75,196.74,3.34189244]
[1761790938058,20.592,196.76,196.74,3.34189244]
[1761790938234,20.592,196.76,196.75,0.67]
[1761790940628,103.4,196.79,196.75,0.67]
[1761790940629,128.96218716,196.79,196.75,0.67]
[1761790941057,4.97018716,196.78,196.75,0.67]
[1761790941355,4.97018716,196.77,196.75,0.67]
[1761790942240,4.97018716,196.78,196.75,0.67]
[1761790943273,123.992,196.79,196.75,0.67]
[1761790943274,128.96218716,196.79,196.75,0.67]
[1761790944567,108.37018716,196.79,196.75,0.67]
[1761790944770,108.37018716,196.79,196.76,3.34137761]
[1761790945067,108.37018716,196.79,196.77,3.34117842]
[1761790945367,108.37018716,196.79,196.75,0.67]
[1761790945550,103.4,196.79,196.76,3.34201573]
[1761790945858,103.4,196.79,196.75,5.75256059]
[1761790946061,103.4,196.79,196.76,4.05201656]
[1761790946267,103.4,196.8,196.77,3.34201656]
[1761790946467,25.56218716,196.77,196.7,0.71]
[1761790946680,4.97018716,196.73,196.71,3.34444333]
[1761790946843,4.97018716,196.72,196.7,0.71]
[1761790947173,20.592,196.75,196.69,0.2]
[1761790947174,4.97018716,196.71,196.69,0.2]
[1761790947340,4.97018716,196.7,196.69,0.2]
[1761790947660,20.592,196.72,196.7,0.71]
[1761790947859,4.97018716,196.77,196.71,3.34404246]
[1761790948163,4.97018716,196.75,196.7,0.71]
[1761790948465,4.97018716,196.75,196.71,3.34437178]
[1761790948643,4.97018716,196.77,196.72,9.13767712]
[1761790948958,20.592,196.79,196.73,9.02455894]
[1761790949139,20.592,196.79,196.74,4.05437178]
[1761790949340,4.97018716,196.81,196.75,3.34437178]
[1761790949664,4.97018716,196.81,196.76,3.34437178]
[1761790949848,4.97018716,196.81,196.74,0.71]
[1761790950048,20.592,196.8,196.75,3.34337067]
[1761790950273,20.592,196.8,196.76,3.34337067]
[1761790950467,20.592,196.8,196.74,0.71]
[1761790950641,20.592,196.8,196.75,3.3454847]
[1761790950959,20.592,196.8,196.76,3.3454847]
[1761790951164,20.592,196.8,196.74,0.71]
[1761790951344,20.592,196.8,196.75,3.3465168]
[1761790951537,20.592,196.8,196.76,4.0565168]
[1761790951739,20.592,196.82,196.76,0.71]
[1761790951944,20.592,196.82,196.77,6.04407984]
[1761790952141,20.592,196.82,196.78,3.34665675]
[1761790952348,20.592,196.83,196.79,3.34665675]
[1761790952568,20.592,196.83,196.78,0.71]
[1761790952863,1.98742309,196.84,196.79,3.34639283]
[1761790953163,22.57942309,196.84,196.78,0.71]
[1761790953468,20.592,196.83,196.79,3.34705173]
[1761790953660,20.592,196.83,196.78,0.71]
[1761790953853,4.96688903,196.84,196.79,3.34760252]
[1761790954046,20.592,196.83,196.78,0.71]
[1761790954247,20.592,196.83,196.79,3.34760661]
[1761790954554,20.592,196.83,196.78,0.71]
[1761790954756,20.592,196.84,196.79,3.34763632]
[1761790955061,20.592,196.84,196.78,5.67688903]
[1761790955290,20.592,196.84,196.79,3.34788525]
[1761790955566,20.592,196.83,196.79,0.71]
[1761790961670,20.592,196.82,196.79,0.71]
[1761790967376,20.592,196.82,196.8,3.34711284]
[1761790967580,20.592,196.82,196.79,0.71]
[1761790967785,20.592,196.82,196.8,3.3465841]
[1761790967968,20.592,196.82,196.81,0.71]
[1761790969068,103.4,196.85,196.81,4.05670252]
[1761790969272,103.4,196.85,196.82,9.02359155]
[1761790969470,103.4,196.85,196.83,3.34670252]
[1761790969667,103.4,196.85,196.83,0.71]
[1761790969874,103.4,196.85,196.84,9.02098913]
[1761790971862,103.4,196.85,196.84,4.0541001]
[1761790973787,108.36688903,196.91,196.84,9.02098913]
[1761790974003,103.4,196.91,196.87,4.96688903]
[1761790974483,103.4,196.91,196.88,0.72]
[1761790974663,103.4,196.93,196.88,0.72]
[1761790974863,123.992,196.93,196.88,0.72]
[1761790975271,125.97688867,196.93,196.88,0.72]
[1761790976087,123.992,196.93,196.88,0.72]
[1761790978106,123.992,196.93,196.81,4.65944369]
[1761790978107,20.592,196.85,196.78,4.15133943]
[1761790978387,1.98488867,196.82,196.77,0.72]
[1761790978593,1.98488867,196.82,196.78,3.34419176]
[1761790978765,1.98488867,196.82,196.77,0.72]
[1761790978966,1.98488867,196.82,196.78,3.34431979]
[1761790979180,1.98488867,196.82,196.77,0.72]
[1761790979374,1.98488867,196.82,196.78,3.34420322]
[1761790979586,1.98488867,196.82,196.77,0.72]
[1761790979781,1.98488867,196.84,196.78,3.34437349]
[1761790979982,22.57688867,196.84,196.77,2.70488867]
[1761790980180,22.57688867,196.84,196.78,3.34475294]
[1761790980382,22.57688867,196.84,196.79,3.34419609]
[1761790980688,22.48707437,196.88,196.79,0.72]
[1761790980689,22.57688867,196.85,196.79,0.72]
[1761790980886,22.57688867,196.85,196.8,6.0486511]
[1761790980887,20.592,196.85,196.8,6.0486511]
[1761790981100,20.592,196.85,196.81,4.06275098]
[1761790981277,1.98488867,196.83,196.79,0.72]
[1761790981483,20.592,196.87,196.8,3.34469895]
[1761790981484,1.98488867,196.82,196.8,3.34469895]
[1761790981681,20.592,196.87,196.76,1.98488867]
[1761790981886,1.98488867,196.84,196.77,5.33064529]
[1761790982078,1.98488867,196.84,196.78,3.34575662]
[1761790982283,1.98488867,196.84,196.79,3.34575662]
[1761790982684,1.98488867,196.84,196.79,4.06575662]
[1761790982993,20.592,196.83,196.79,0.72]
[1761790983999,22.57688867,196.83,196.79,0.72]
[1761790984198,1.98488867,196.82,196.79,0.72]
[1761790984803,20.592,196.83,196.8,3.3462588]
[1761790984993,20.592,196.83,196.79,2.70488867]
[1761790985196,20.592,196.83,196.8,4.06622451]
[1761790985503,20.592,196.83,196.8,0.72]
[1761790985905,22.57688867,196.83,196.8,0.72]
[1761790987607,20.592,196.83,196.8,0.72]
[1761790987812,20.592,196.83,196.81,3.34562456]
[1761790988017,22.57688867,196.83,196.8,0.72]
[1761790988190,22.57688867,196.83,196.81,3.34581059]
[1761790988394,22.57688867,196.83,196.8,0.72]
[1761790988711,103.4,196.86,196.81,3.34673305]
[1761790989009,7.93955468,196.9,196.82,3.34673305]
[1761790989212,20.592,196.87,196.79,0.14216157]
[1761790989420,20.592,196.87,196.82,0.72]
[1761790990119,0.1,196.94,196.84,0.14216157]
[1761790990327,1.98488867,196.91,196.86,0.14216157]
[1761790990625,1.98488867,196.92,196.87,3.34594621]
[1761790990789,1.98488867,196.92,196.87,0.72]
[1761790990988,1.98488867,196.91,196.88,0.72]
[1761790991209,20.692,196.94,196.88,0.72]
[1761790991210,1.98488867,196.92,196.88,0.72]
[1761790991385,1.98488867,196.89,196.84,0.72]
[1761790991591,1.98488867,196.89,196.85,3.34092012]
[1761790991809,1.98488867,196.89,196.86,3.34092012]
[1761790992112,1.98488867,196.89,196.84,5.80024219]
[1761790992406,20.592,196.93,196.85,6.1673494]
[1761790992407,1.98488867,196.91,196.85,6.1673494]
[1761790992603,22.57688867,196.93,196.86,5.32518783]
[1761790992802,22.57688867,196.93,196.87,3.34029916]
[1761790993006,20.592,196.93,196.88,3.34029916]
[1761790993213,22.57688867,196.93,196.89,4.04029916]
[1761790993414,0.1,196.94,196.9,3.34216689]
[1761790993616,0.1,196.94,196.89,0.7]
[1761790993617,1.98488867,196.93,196.89,0.7]
[1761790993808,1.98488867,196.93,196.9,3.34229247]
[1761790994114,1.98488867,196.93,196.91,3.34310903]
[1761790994295,20.592,196.93,196.89,0.7]
[1761790994599,20.592,196.93,196.9,3.34248302]
[1761790994799,20.592,196.93,196.89,0.7]
[1761790994998,20.592,196.93,196.9,3.3424849]
[1761790995202,20.592,196.93,196.89,0.7]
[1761790995404,20.592,196.93,196.9,3.34152991]
[1761790995590,20.592,196.93,196.89,0.7]
[1761790995790,3.10107397,196.9,196.83,4.15133943]
[1761790995987,3.10107397,196.84,196.79,0.7]
[1761790996193,3.10107397,196.83,196.8,3.3468057]
[1761790996516,3.10107397,196.83,196.81,3.3470221]
[1761790996721,3.10107397,196.9,196.82,3.3470221]
[1761790996722,20.592,196.9,196.82,3.3470221]
[1761790996903,3.10107397,196.88,196.83,3.3470221]
[1761790997102,3.10107397,196.88,196.84,3.3470221]
[1761790997411,20.592,196.85,196.81,0.7]
[1761790997601,20.592,196.85,196.82,3.3453282]
[1761790997793,20.592,196.85,196.83,3.3453282]
[1761790997995,20.592,196.85,196.84,3.3453282]
[1761790999219,5.07900381,196.89,196.79,9.2328519]
[1761790999220,20.592,196.83,196.82,3.3453282]
[1761790999404,7.39564027,196.82,196.79,0.7]
[1761790999605,7.39564027,196.82,196.8,3.34757409]
[1761790999919,7.39564027,196.82,196.81,3.34757409]
[1761791000111,20.592,196.83,196.81,3.34757409]
[1761791000306,20.592,196.83,196.82,3.34695814]
[1761791000910,12.69658128,196.91,196.82,3.34695814]
[1761791000911,7.39564027,196.86,196.82,4.04695814]